bitfinex-derivatives/quotes_BTCF0:USTF0_20241109
["timestamp","ask_amount","ask_price","bid_price","bid_amount"]
[1731165416794,2.3e-07,76383.0,76382.0,0.57663901]
[1731165417997,2.3e-07,76383.0,76382.0,0.57648119]
[1731165418197,2.3e-07,76383.0,76382.0,0.66863396]
[1731165418998,2.3e-07,76383.0,76382.0,0.76035396]
[1731165420911,2.3e-07,76383.0,76382.0,0.68741642]
[1731165421111,2.3e-07,76383.0,76382.0,0.59526365]
[1731165421913,2.3e-07,76383.0,76382.0,0.59535183]
[1731165422101,2.3e-07,76383.0,76382.0,0.68761805]
[1731165423302,2.3e-07,76383.0,76382.0,0.68762919]
[1731165423808,2.3e-07,76383.0,76382.0,0.71952919]
[1731165424014,2.3e-07,76383.0,76382.0,0.75102919]
[1731165426611,2.3e-07,76383.0,76382.0,0.75061911]
[1731165427606,0.00423661,76385.0,76382.0,0.94906649]
[1731165427815,0.00423661,76385.0,76384.0,0.13836654]
[1731165428006,0.00423661,76385.0,76384.0,0.30763565]
[1731165429215,0.00423661,76385.0,76384.0,0.38057319]
[1731165429416,0.00602306,76388.0,76387.0,0.065426]
[1731165429616,0.00602306,76388.0,76387.0,0.74137019]
[1731165430128,0.00602306,76388.0,76387.0,0.84783443]
[1731165430314,0.00890625,76398.0,76387.0,0.78240843]
[1731165430533,0.00890625,76398.0,76392.0,0.21129708]
[1731165430708,0.00890625,76398.0,76392.0,0.47228619]
[1731165431314,0.00890625,76398.0,76392.0,1.97228619]
[1731165432619,0.00890625,76398.0,76392.0,1.82641111]
[1731165432821,0.00890625,76398.0,76392.0,1.97228619]
[1731165433120,0.00890625,76398.0,76392.0,1.82641111]
[1731165433318,0.00890625,76398.0,76392.0,1.89934865]
[1731165434216,0.00890625,76398.0,76392.0,1.97228619]
[1731165434416,0.00890625,76398.0,76392.0,1.89934865]
[1731165435507,0.00890625,76398.0,76392.0,1.88056619]
[1731165435719,0.005237,76402.0,76393.0,0.2601578]
[1731165435915,0.005237,76402.0,76399.0,0.49915354]
[1731165436122,0.005237,76402.0,76399.0,0.66722197]
[1731165436627,0.005237,76402.0,76399.0,2.16722197]
[1731165437716,0.005237,76402.0,76399.0,2.0763762]
[1731165438319,0.005237,76402.0,76399.0,2.16693858]
[1731165438619,0.005237,76402.0,76399.0,2.0763762]
[1731165438815,0.005237,76402.0,76399.0,2.19933293]
[1731165439220,0.005237,76402.0,76399.0,2.1086762]
[1731165439426,0.005237,76402.0,76399.0,2.19912487]
[1731165439723,0.005237,76402.0,76399.0,2.59180487]
[1731165440131,0.005237,76402.0,76399.0,2.5013562]
[1731165441227,0.005237,76402.0,76399.0,2.50006618]
[1731165442435,0.005237,76402.0,76399.0,2.57804384]
[1731165442729,0.005237,76402.0,76399.0,2.50006618]
[1731165442927,0.005237,76402.0,76399.0,2.52624147]
[1731165443320,0.005237,76402.0,76399.0,2.59917901]
[1731165443832,0.005237,76402.0,76399.0,2.52624147]
[1731165446932,0.005237,76402.0,76399.0,2.55634018]
[1731165447428,0.005237,76402.0,76399.0,2.64671972]
[1731165449024,0.005237,76402.0,76399.0,2.71965726]
[1731165449223,0.005237,76402.0,76399.0,2.32697726]
[1731165449428,0.005237,76402.0,76399.0,2.25403972]
[1731165449938,0.005237,76402.0,76399.0,2.32697726]
[1731165450631,0.005237,76402.0,76399.0,2.25403972]
[1731165452338,0.005237,76402.0,76399.0,2.22173972]
[1731165454525,0.005237,76402.0,76399.0,2.58253972]
[1731165455225,0.005237,76402.0,76399.0,2.67421972]
[1731165456735,0.005237,76402.0,76399.0,1.95261972]
[1731165457040,0.005237,76402.0,76399.0,2.67421972]
[1731165459135,0.005237,76402.0,76399.0,2.77970506]
[1731165460237,0.005237,76402.0,76399.0,2.8526426]
[1731165460437,0.005237,76402.0,76400.0,0.065415]
[1731165460634,0.005237,76402.0,76400.0,0.33721252]
[1731165460944,0.005237,76402.0,76400.0,0.33823042]
[1731165461138,0.005237,76402.0,76400.0,1.83823042]
[1731165461642,0.00351948,76406.0,76405.0,0.065411]
[1731165461843,0.00351948,76406.0,76405.0,0.37851767]
[1731165464129,0.00351948,76406.0,76405.0,0.48444413]
[1731165464441,0.00351948,76406.0,76405.0,1.98444413]
[1731165465147,0.00351948,76406.0,76405.0,2.089048]
[1731165465848,0.00351948,76406.0,76405.0,2.08981073]
[1731165466142,0.00351948,76406.0,76405.0,1.98520686]
[1731165466844,0.00351948,76406.0,76405.0,2.0896559]
[1731165467530,0.00351948,76406.0,76405.0,2.08965801]
[1731165467731,0.00351948,76406.0,76405.0,1.98520686]
[1731165468638,0.00351948,76406.0,76405.0,2.10577141]
[1731165470137,0.00351948,76406.0,76405.0,2.10568178]
[1731165470437,0.00351948,76406.0,76405.0,1.83933178]
[1731165470739,0.00351948,76406.0,76405.0,1.98520686]
[1731165470946,0.00351948,76406.0,76405.0,1.91226932]
[1731165471146,0.00351948,76406.0,76405.0,1.83933178]
[1731165471346,0.00351948,76406.0,76405.0,2.01669659]
[1731165472147,0.00351948,76406.0,76405.0,1.91226932]
[1731165473445,0.00351948,76406.0,76405.0,1.83933178]
[1731165473645,0.00351948,76406.0,76405.0,1.91607245]
[1731165473950,0.00351948,76406.0,76405.0,1.9307242]
[1731165475447,0.00351948,76406.0,76405.0,1.93155314]
[1731165475849,0.00351948,76406.0,76405.0,1.93184107]
[1731165476240,0.00351948,76406.0,76405.0,1.91719535]
[1731165476440,0.00351948,76406.0,76405.0,2.02322428]
[1731165476647,0.00351948,76406.0,76405.0,1.91719535]
[1731165477650,0.00351948,76406.0,76405.0,1.9318618]
[1731165478351,0.00351948,76406.0,76405.0,2.02324015]
[1731165478855,0.00351948,76406.0,76405.0,1.9318618]
[1731165479648,0.00351948,76406.0,76405.0,2.02323738]
[1731165480158,0.00351948,76406.0,76405.0,1.9318618]
[1731165480355,0.00351948,76406.0,76405.0,2.0232377]
[1731165480656,0.00351948,76406.0,76405.0,1.8402218]
[1731165480851,0.00351948,76406.0,76405.0,1.82581383]
[1731165481556,0.00351948,76406.0,76405.0,2.54741383]
[1731165484550,0.00351948,76406.0,76405.0,2.45609965]
[1731165484857,0.00351948,76406.0,76405.0,2.54773965]
[1731165485450,0.00355948,76406.0,76405.0,2.54773965]
[1731165486159,0.00355948,76406.0,76405.0,2.45609965]
[1731165486348,0.00355948,76406.0,76405.0,2.54773965]
[1731165486650,0.00355948,76406.0,76405.0,2.65396463]
[1731165488853,0.00355948,76406.0,76405.0,2.74532437]
[1731165489651,0.00355948,76406.0,76405.0,2.54773965]
[1731165494660,0.00355948,76406.0,76405.0,2.54823568]
[1731165497963,0.00355948,76406.0,76405.0,2.37947994]
[1731165498169,0.00355948,76406.0,76405.0,2.65482413]
[1731165499467,0.00355948,76406.0,76405.0,2.37947994]
[1731165499656,0.00355948,76406.0,76405.0,2.65485893]
[1731165502268,0.00355948,76406.0,76405.0,2.7592862]
[1731165504072,0.00355948,76406.0,76405.0,2.65485893]
[1731165504975,0.00355948,76406.0,76405.0,2.54828296]
[1731165505187,0.00536728,76408.0,76407.0,0.065409]
[1731165505368,0.00536728,76408.0,76407.0,0.23421202]
[1731165508065,0.00536728,76408.0,76407.0,0.26079318]
[1731165508266,0.00536728,76408.0,76407.0,0.09199016]
[1731165508467,0.00536728,76408.0,76407.0,0.26121443]
[1731165509666,0.00536728,76408.0,76407.0,0.26122557]
[1731165510275,0.00536728,76408.0,76407.0,0.33416311]
[1731165510767,0.00536728,76408.0,76407.0,0.53244849]
[1731165510977,0.00536728,76408.0,76407.0,0.44102255]
[1731165513285,0.00536728,76408.0,76407.0,0.36808501]
[1731165513488,0.00536728,76408.0,76407.0,0.44102255]
[1731165515085,0.00272674,76413.0,76410.0,0.065407]
[1731165515285,0.00272674,76413.0,76411.0,0.16929141]
[1731165515485,0.00272674,76413.0,76411.0,0.23469741]
[1731165516187,0.00272674,76413.0,76411.0,0.16929141]
[1731165516682,0.00272674,76413.0,76411.0,0.26093141]
[1731165517786,0.00272674,76413.0,76411.0,0.32633741]
[1731165518383,0.00272674,76413.0,76411.0,0.68713741]
[1731165521479,0.097205,76412.0,76411.0,0.53009141]
[1731165521788,0.097205,76412.0,76411.0,0.43803283]
[1731165521985,0.097205,76412.0,76411.0,0.51642004]
[1731165522177,0.097205,76412.0,76411.0,0.43803283]
[1731165523570,0.097205,76412.0,76411.0,0.3608]
[1731165523771,0.097205,76412.0,76411.0,0.426206]
[1731165524180,0.12415153,76412.0,76411.0,0.426206]
[1731165525284,0.12415153,76412.0,76411.0,1.426206]
[1731165526281,0.51675153,76412.0,76411.0,1.426206]
[1731165526477,0.58968907,76412.0,76411.0,1.05218335]
[1731165526677,0.58968907,76412.0,76411.0,1.0]
[1731165526882,0.51675153,76412.0,76411.0,1.03914432]
[1731165527380,0.51675153,76412.0,76411.0,1.0]
[1731165528375,1.51675153,76412.0,76411.0,1.0]
[1731165532080,1.58968907,76412.0,76411.0,1.0]
[1731165532391,1.88968907,76412.0,76411.0,1.0]
[1731165534694,2.25048907,76412.0,76411.0,1.0]
[1731165536993,1.95048907,76412.0,76411.0,1.0]
[1731165537299,2.25048907,76412.0,76411.0,0.4185293]
[1731165543012,1.95048907,76412.0,76411.0,0.4185293]
[1731165545012,1.57655153,76412.0,76411.0,0.4185293]
[1731165545707,1.48495153,76412.0,76411.0,0.4185293]
[1731165546103,1.55788907,76412.0,76411.0,0.4185293]
[1731165546317,1.52608907,76412.0,76411.0,0.4185293]
[1731165549414,1.52608907,76412.0,76411.0,0.45767362]
[1731165549714,1.52608907,76412.0,76411.0,0.52307962]
[1731165551721,1.52608907,76412.0,76411.0,0.4839353]
[1731165561440,1.59902661,76412.0,76411.0,0.4185293]
[1731165562524,1.62922661,76412.0,76411.0,0.4185293]
[1731165562727,1.62922661,76412.0,76411.0,0.45768481]
[1731165563533,2.02182661,76412.0,76411.0,0.4185293]
[1731165563919,2.04716907,76412.0,76411.0,0.4185293]
[1731165565038,2.24364634,76412.0,76411.0,0.4185293]
[1731165566728,2.21830388,76412.0,76411.0,0.4185293]
[1731165569535,2.24389588,76412.0,76411.0,0.4185293]
[1731165570936,2.27719588,76412.0,76411.0,0.4185293]
[1731165574736,2.63799588,76412.0,76411.0,0.3100263]
[1731165577853,2.63799588,76412.0,76402.0,0.0070913]
[1731165577854,0.06541,76406.0,76402.0,0.0070913]
[1731165578152,0.57208808,76403.0,76402.0,0.0009913]
[1731165578356,0.52474254,76403.0,76402.0,0.0009913]
[1731165578556,0.72036382,76403.0,76402.0,0.0009913]
[1731165582437,0.69477182,76403.0,76402.0,0.0009913]
[1731165584548,0.72152476,76403.0,76402.0,0.0009913]
[1731165586546,0.72152476,76403.0,76402.0,0.04014023]
[1731165586939,0.72152476,76403.0,76402.0,0.0009913]
[1731165587442,0.74681008,76403.0,76402.0,0.0009913]
[1731165587632,0.72152476,76403.0,76402.0,0.0009913]
[1731165588244,0.74679745,76403.0,76402.0,0.0009913]
[1731165588640,0.72152476,76403.0,76402.0,0.0009913]
[1731165589244,0.74672421,76403.0,76402.0,0.0009913]
[1731165589434,0.72152476,76403.0,76402.0,0.0009913]
[1731165590232,0.7465823,76403.0,76402.0,0.0009913]
[1731165590848,0.72152476,76403.0,76402.0,0.0009913]
[1731165591939,0.75163717,76403.0,76402.0,0.0009913]
[1731165592836,0.75163717,76403.0,76402.0,0.04013105]
[1731165593036,0.75163717,76403.0,76402.0,0.0009913]
[1731165595345,0.52590348,76403.0,76402.0,0.0009913]
[1731165595646,0.52590348,76403.0,76402.0,0.04013105]
[1731165595848,0.52590348,76403.0,76402.0,0.0009913]
[1731165596051,0.52590348,76403.0,76402.0,0.04017986]
[1731165596241,0.52590348,76403.0,76402.0,0.0009913]
[1731165598644,0.45296594,76403.0,76402.0,0.0009913]
[1731165598840,0.16510348,76403.0,76402.0,0.05318987]
[1731165600044,0.16510348,76403.0,76402.0,0.0009913]
[1731165600240,0.09216594,76403.0,76402.0,0.0664043]
[1731165600439,0.16510348,76403.0,76402.0,0.0664043]
[1731165600950,0.02675294,76403.0,76402.0,0.0664043]
[1731165601146,0.07293754,76407.0,76402.0,0.0009913]
[1731165601447,0.065411,76405.0,76404.0,0.05225292]
[1731165601648,0.065411,76405.0,76403.0,0.065412]
[1731165603242,0.065411,76405.0,76402.0,0.0009913]
[1731165603441,0.065411,76405.0,76404.0,0.065412]
[1731165604343,0.07293754,76407.0,76402.0,0.0009913]
[1731165604651,0.07293754,76407.0,76406.0,0.11765125]
[1731165604849,0.45698725,76412.0,76410.0,0.065406]
[1731165605147,0.52924479,76412.0,76411.0,0.03916922]
[1731165605348,0.52924479,76412.0,76410.0,0.065406]
[1731165605349,0.065406,76411.0,76410.0,0.065406]
[1731165610854,0.065406,76411.0,76410.0,0.60456553]
[1731165611954,0.065406,76411.0,76410.0,0.565406]
[1731165613352,0.565406,76411.0,76410.0,0.565406]
[1731165613847,0.63834354,76411.0,76410.0,0.5]
[1731165614055,0.63834354,76411.0,76410.0,0.53915988]
[1731165614248,0.63834354,76411.0,76410.0,0.5]
[1731165620259,0.67024354,76411.0,76410.0,0.5]
[1731165620461,0.86762511,76411.0,76410.0,0.5]
[1731165623273,0.89292966,76411.0,76410.0,0.5]
[1731165625760,1.28552966,76411.0,76410.0,0.5]
[1731165626177,0.89292966,76411.0,76410.0,0.5]
[1731165626374,0.81999212,76411.0,76410.0,0.5]
[1731165626577,0.9658672,76411.0,76410.0,0.5]
[1731165631672,1.6874672,76411.0,76410.0,0.5]
[1731165632274,1.76049861,76411.0,76410.0,0.07195008]
[1731165632766,1.76049861,76411.0,76410.0,0.06826172]
[1731165633380,1.68756107,76411.0,76410.0,0.06826172]
[1731165634380,2.08016107,76411.0,76410.0,0.06826172]
[1731165635378,2.15309861,76411.0,76410.0,0.06826172]
[1731165635681,2.08016107,76411.0,76410.0,0.06826172]
[1731165639178,1.68756107,76411.0,76410.0,0.06826172]
[1731165639886,1.66216265,76411.0,76410.0,0.06826172]
[1731165640579,2.05476265,76411.0,76410.0,0.06826172]
[1731165641084,1.90888757,76411.0,76410.0,0.06826172]
[1731165641287,2.05476265,76411.0,76410.0,0.06826172]
[1731165642172,2.07990234,76411.0,76410.0,0.06826172]
[1731165642382,1.93402726,76411.0,76410.0,0.06826172]
[1731165642580,2.07990234,76411.0,76410.0,0.06826172]
[1731165645390,1.68730234,76411.0,76410.0,0.06826172]
[1731165645890,1.77882234,76411.0,76410.0,0.06826172]
[1731165648985,1.81805769,76411.0,76410.0,0.02151172]
[1731165652884,1.09645769,76411.0,76410.0,0.02151172]
[1731165653093,1.81805769,76411.0,76410.0,0.02151172]
[1731165653896,1.77882234,76411.0,76410.0,0.02151172]
[1731165654198,1.05722234,76411.0,76410.0,0.02151172]
[1731165654402,1.77882234,76411.0,76410.0,0.02151172]
[1731165655194,1.81742914,76411.0,76410.0,0.02151172]
[1731165660503,1.77882234,76411.0,76410.0,0.02151172]
[1731165660704,1.63294726,76411.0,76410.0,0.02151172]
[1731165660897,1.77882234,76411.0,76410.0,0.02151172]
[1731165661097,1.81737747,76411.0,76410.0,0.02151172]
[1731165661799,1.77882234,76411.0,76410.0,0.02151172]
[1731165661997,1.81734158,76411.0,76410.0,0.02151172]
[1731165663299,1.09574158,76411.0,76410.0,0.02151172]
[1731165663606,1.81734158,76411.0,76410.0,0.02151172]
[1731165668004,1.81740939,76411.0,76410.0,0.02151172]
[1731165669699,1.69398939,76411.0,76410.0,0.02151172]
[1731165669891,1.71253185,76411.0,76410.0,0.02151172]
[1731165670498,1.72174265,76411.0,76410.0,0.02151172]
[1731165674702,1.57586757,76411.0,76410.0,0.02151172]
[1731165675004,1.72174265,76411.0,76410.0,0.02151172]
[1731165679513,1.7838792,76411.0,76410.0,0.02151172]
[1731165680606,1.74526717,76411.0,76410.0,0.02151172]
[1731165688513,1.65378717,76411.0,76410.0,0.02151172]
[1731165688703,1.48438757,76411.0,76410.0,0.02151172]
[1731165688917,0.5,76411.0,76410.0,0.02151172]
[1731165689111,0.57293754,76411.0,76410.0,0.02151172]
[1731165689418,0.57293754,76411.0,76410.0,0.0737505]
[1731165689618,0.57293754,76411.0,76410.0,0.1050505]
[1731165689922,0.57293754,76411.0,76410.0,0.05281172]
[1731165690716,0.57293754,76411.0,76410.0,0.09199662]
[1731165691112,0.57293754,76411.0,76410.0,0.05281172]
[1731165691824,0.57293754,76411.0,76410.0,0.09199662]
[1731165692121,0.5,76411.0,76410.0,0.09199662]
[1731165692424,0.57293754,76411.0,76410.0,0.15738234]
[1731165692621,0.57293754,76411.0,76410.0,0.54998234]
[1731165692809,0.07293754,76411.0,76410.0,0.15738234]
[1731165694611,0.07293754,76411.0,76410.0,0.11821872]
[1731165697725,0.28010225,76412.0,76410.0,0.05281172]
[1731165697911,0.28010225,76412.0,76411.0,0.065406]
[1731165698121,0.28010225,76412.0,76411.0,0.426206]
[1731165698423,0.28010225,76412.0,76411.0,0.46536962]
[1731165698812,0.28010225,76412.0,76411.0,0.818806]
[1731165699230,0.28010225,76412.0,76411.0,0.87104478]
[1731165699418,0.28010225,76412.0,76411.0,0.818806]
[1731165700420,0.28010225,76412.0,76411.0,0.87095636]
[1731165700623,0.28010225,76412.0,76411.0,0.818806]
[1731165700826,0.28010225,76412.0,76411.0,0.8709391]
[1731165702629,0.28010225,76412.0,76411.0,0.818806]
[1731165704323,0.28010225,76412.0,76411.0,0.8709391]
[1731165704514,0.28010225,76412.0,76411.0,0.818806]
[1731165706328,0.28010225,76412.0,76411.0,0.85790197]
[1731165708732,0.28010225,76412.0,76411.0,0.818806]
[1731165709028,0.28010225,76412.0,76411.0,0.85790735]
[1731165709736,0.28010225,76412.0,76411.0,0.85790722]
[1731165710319,0.28010225,76412.0,76411.0,0.818806]
[1731165710631,0.34550725,76412.0,76411.0,0.46531591]
[1731165711016,0.34550725,76412.0,76411.0,0.4653173]
[1731165712635,0.34550725,76412.0,76411.0,0.426206]
[1731165713231,0.34550725,76412.0,76411.0,0.065406]
[1731165714031,0.34550725,76412.0,76411.0,0.1045286]
[1731165714224,0.34550725,76412.0,76411.0,0.065406]
[1731165720547,0.34550725,76412.0,76410.0,0.02151172]
[1731165720548,0.065406,76411.0,76410.0,0.02151172]
[1731165720748,0.096806,76411.0,76410.0,0.07375058]
[1731165721344,0.096806,76411.0,76410.0,0.02151172]
[1731165722950,0.53054354,76411.0,76410.0,0.02151172]
[1731165724853,0.55464424,76411.0,76410.0,0.02151172]
[1731165726051,0.4817067,76411.0,76410.0,0.02151172]
[1731165726253,0.82395952,76411.0,76410.0,0.02151172]
[1731165728645,0.67808444,76411.0,76410.0,0.02151172]
[1731165728955,0.82395952,76411.0,76410.0,0.02151172]
[1731165729847,0.67808444,76411.0,76410.0,0.02151172]
[1731165730043,0.82395952,76411.0,76410.0,0.02151172]
[1731165730354,0.79985882,76411.0,76410.0,0.02151172]
[1731165736680,0.72692128,76411.0,76410.0,0.02151172]
[1731165736869,0.53054354,76411.0,76410.0,0.02151172]
[1731165737367,0.55653754,76411.0,76410.0,0.02151172]
[1731165737560,0.43373754,76411.0,76410.0,0.02151172]
[1731165737775,0.43373754,76411.0,76410.0,0.12610582]
[1731165737982,0.43373754,76411.0,76410.0,0.08691872]
[1731165738296,0.28078225,76412.0,76410.0,0.02151172]
[1731165738585,0.28078225,76412.0,76411.0,0.11764486]
[1731165738586,0.25424388,76412.0,76411.0,0.11764486]
[1731165738774,0.25424388,76412.0,76411.0,0.065406]
[1731165739177,0.25424388,76412.0,76411.0,0.13834354]
[1731165740801,0.32718142,76412.0,76411.0,0.065406]
[1731165743581,0.32718142,76412.0,76411.0,0.11757915]
[1731165743877,0.39258642,76412.0,76411.0,0.065406]
[1731165746356,0.32718142,76412.0,76411.0,0.065406]
[1731165747657,0.39258642,76412.0,76411.0,0.065406]
[1731165749264,0.32718142,76412.0,76411.0,0.065406]
[1731165751168,0.32718142,76412.0,76411.0,0.10453433]
[1731165751365,0.32718142,76412.0,76411.0,0.065406]
[1731165752655,0.46552396,76412.0,76411.0,0.03912951]
[1731165752860,0.40011896,76412.0,76410.0,0.06064123]
[1731165753068,0.065406,76411.0,76410.0,0.06064123]
[1731165753766,0.13834354,76411.0,76410.0,0.06064123]
[1731165754569,0.13834354,76411.0,76410.0,0.02151172]
[1731165754966,0.065406,76411.0,76410.0,0.02151172]
[1731165755762,0.13834354,76411.0,76410.0,0.02151172]
[1731165756868,0.065406,76411.0,76410.0,0.02151172]
[1731165757470,0.13834354,76411.0,76410.0,0.02151172]
[1731165757973,0.065406,76411.0,76410.0,0.02151172]
[1731165758864,0.32718142,76412.0,76411.0,0.065406]
[1731165759564,0.32718142,76412.0,76411.0,0.11762487]
[1731165760565,0.39258642,76412.0,76411.0,0.065406]
[1731165761368,0.39258642,76412.0,76411.0,0.11762487]
[1731165761665,0.39258642,76412.0,76411.0,0.065406]
[1731165764273,0.39258642,76412.0,76411.0,0.11762487]
[1731165765775,0.32718142,76412.0,76411.0,0.065406]
[1731165770474,0.39258642,76412.0,76411.0,0.065406]
[1731165785386,0.31964888,76412.0,76411.0,0.065406]
[1731165785691,0.32718142,76412.0,76411.0,0.065406]
[1731165788093,0.40011896,76412.0,76410.0,0.08668042]
[1731165788296,0.40011896,76412.0,76410.0,0.02151172]
[1731165788297,0.065406,76411.0,76410.0,0.02151172]
[1731165788881,0.13834354,76411.0,76410.0,0.02151172]
[1731165789181,0.49914354,76411.0,76410.0,0.07377818]
[1731165789382,0.49914354,76411.0,76410.0,0.02151172]
[1731165789583,0.49914354,76411.0,76410.0,0.07377818]
[1731165789991,0.52273549,76411.0,76410.0,0.07377818]
[1731165790181,0.49914354,76411.0,76410.0,0.07377818]
[1731165790885,0.49914354,76411.0,76410.0,0.02151172]
[1731165791893,0.49914354,76411.0,76410.0,0.07377818]
[1731165792198,0.52553619,76411.0,76410.0,0.07377818]
[1731165792398,0.45259865,76411.0,76410.0,0.07377818]
[1731165792696,0.45259865,76411.0,76410.0,0.02151172]
[1731165792997,0.52553619,76411.0,76410.0,0.02151172]
[1731165796598,0.45259865,76411.0,76410.0,0.02151172]
[1731165796796,0.52553619,76411.0,76410.0,0.02151172]
[1731165797392,0.45259865,76411.0,76410.0,0.02151172]
[1731165798805,0.45259865,76411.0,76410.0,0.06068855]
[1731165799190,0.45259865,76411.0,76410.0,0.02151172]
[1731165805797,0.09179865,76411.0,76410.0,0.02151172]
[1731165807906,0.09179865,76411.0,76410.0,0.07377818]
[1731165808106,0.16473619,76411.0,76410.0,0.07377818]
[1731165808309,0.09179865,76411.0,76410.0,0.02151172]
[1731165809607,0.09179865,76411.0,76410.0,0.07377818]
[1731165811708,0.09179865,76411.0,76410.0,0.02151172]
[1731165812402,0.16473619,76411.0,76410.0,0.02151172]
[1731165814903,0.16473619,76411.0,76410.0,0.06070787]
[1731165815103,0.16473619,76411.0,76410.0,0.0607087]
[1731165815305,0.18954132,76411.0,76410.0,0.02151172]
[1731165815710,0.16473619,76411.0,76410.0,0.02151172]
[1731165816714,0.38597154,76411.0,76410.0,0.02151172]
[1731165817109,0.42428021,76411.0,76410.0,0.02151172]
[1731165817813,0.38597154,76411.0,76410.0,0.02151172]
[1731165821109,1.10757154,76411.0,76410.0,0.02151172]
[1731165828429,1.13768572,76411.0,76410.0,0.02151172]
[1731165831123,1.53028572,76411.0,76410.0,0.02151172]
[1731165831430,1.50514575,76411.0,76410.0,0.02151172]
[1731165831930,1.1380085,76411.0,76410.0,0.02151172]
[1731165832329,1.11254575,76411.0,76410.0,0.02151172]
[1731165833018,1.13797239,76411.0,76410.0,0.02151172]
[1731165834430,1.23053239,76411.0,76410.0,0.02151172]
[1731165841943,0.86973239,76411.0,76410.0,0.02151172]
[1731165848041,0.50893239,76411.0,76410.0,0.02151172]
[1731165848343,0.86973239,76411.0,76410.0,0.02151172]
[1731165851736,0.86973239,76411.0,76410.0,0.02513547]
[1731165853749,0.50893239,76411.0,76410.0,0.02513547]
[1731165854042,0.77717239,76411.0,76410.0,0.02513547]
[1731165854234,0.86961239,76411.0,76410.0,0.02513547]
[1731165855145,0.79667485,76411.0,76410.0,0.02513547]
[1731165855546,0.86961239,76411.0,76410.0,0.02513547]
[1731165855737,0.79667485,76411.0,76410.0,0.02513547]
[1731165856134,0.86961239,76411.0,76410.0,0.02513547]
[1731165856842,0.50881239,76411.0,76410.0,0.02513547]
[1731165857048,0.86961239,76411.0,76410.0,0.02513547]
[1731165857439,0.47802529,76411.0,76410.0,0.02513547]
[1731165857741,0.55096283,76411.0,76410.0,0.06433245]
[1731165858541,0.62390037,76411.0,76410.0,0.02513547]
[1731165861647,0.62849829,76411.0,76410.0,0.02513547]
[1731165861846,0.62849829,76411.0,76410.0,0.06433245]
[1731165862647,0.62849829,76411.0,76410.0,0.02513547]
[1731165862849,0.62849829,76411.0,76410.0,0.06431907]
[1731165863951,0.62849829,76411.0,76410.0,0.06432179]
[1731165865745,0.62849829,76411.0,76410.0,0.02513547]
[1731165866850,0.62849829,76411.0,76410.0,0.06432253]
[1731165869056,0.62849829,76411.0,76410.0,0.02513547]
[1731165874563,0.26769829,76411.0,76410.0,0.02513547]
[1731165874862,0.62849829,76411.0,76410.0,0.02513547]
[1731165878569,0.62849829,76411.0,76410.0,0.06432669]
[1731165878865,0.62849829,76411.0,76410.0,0.02513547]
[1731165879462,0.60307165,76411.0,76410.0,0.02513547]
[1731165879660,0.62977868,76411.0,76410.0,0.02513547]
[1731165879862,0.60307165,76411.0,76410.0,0.02513547]
[1731165880168,0.62977859,76411.0,76410.0,0.02513547]
[1731165880573,0.60307165,76411.0,76410.0,0.02513547]
[1731165881970,0.24227165,76411.0,76410.0,0.02513547]
[1731165882272,0.60307165,76411.0,76410.0,0.02513547]
[1731165883367,0.62986214,76411.0,76410.0,0.02513547]
[1731165885660,0.26906214,76411.0,76410.0,0.02513547]
[1731165885860,0.62986214,76411.0,76410.0,0.02513547]
[1731165890458,0.82601672,76411.0,76410.0,0.02513547]
[1731165894579,0.91741672,76411.0,76410.0,0.02513547]
[1731165895076,0.77154164,76411.0,76410.0,0.02513547]
[1731165895459,0.91741672,76411.0,76410.0,0.02513547]
[1731165896772,0.77154164,76411.0,76410.0,0.02513547]
[1731165896967,0.91741672,76411.0,76410.0,0.02513547]
[1731165902585,0.77154164,76411.0,76410.0,0.02513547]
[1731165902787,0.77154164,76411.0,76410.0,0.06433921]
[1731165902788,0.6483246,76411.0,76410.0,0.06433921]
[1731165903191,0.5829186,76411.0,76410.0,0.06433921]
[1731165903899,0.05778106,76411.0,76410.0,0.02513547]
[1731165904084,0.03099057,76411.0,76410.0,0.07736998]
[1731165904593,0.03099057,76411.0,76410.0,0.02513547]
[1731165905176,0.10392811,76411.0,76410.0,0.07735115]
[1731165907386,0.10392811,76411.0,76410.0,0.02513547]
[1731165907587,0.46472811,76411.0,76410.0,0.02513547]
[1731165908797,0.46472811,76411.0,76410.0,0.07735115]
[1731165909002,0.53766565,76411.0,76410.0,0.07735115]
[1731165909187,0.53766565,76411.0,76410.0,0.02513547]
[1731165909188,0.46472811,76411.0,76410.0,0.02513547]
[1731165909591,0.53766565,76411.0,76410.0,0.02513547]
[1731165909898,0.10392811,76411.0,76410.0,0.02513547]
[1731165910985,0.17686565,76411.0,76410.0,0.02513547]
[1731165913288,0.10392811,76411.0,76410.0,0.02513547]
[1731165913601,0.17686565,76411.0,76410.0,0.02513547]
[1731165914299,0.10392811,76411.0,76410.0,0.02513547]
[1731165915700,0.10392811,76411.0,76410.0,0.09054247]
[1731165918002,0.10392811,76411.0,76410.0,0.14275815]
[1731165918307,0.03099057,76411.0,76410.0,0.09054247]
[1731165919103,0.10392811,76411.0,76410.0,0.09054247]
[1731165919304,0.10392811,76411.0,76410.0,0.14275815]
[1731165920303,0.10392811,76411.0,76410.0,0.09054247]
[1731165920693,0.10392811,76411.0,76410.0,0.14275815]
[1731165921311,0.10392811,76411.0,76410.0,0.09054247]
[1731165921806,0.10392811,76411.0,76410.0,0.14275815]
[1731165922203,0.10392811,76411.0,76410.0,0.09054247]
[1731165922408,0.16933411,76411.0,76410.0,0.09054247]
[1731165922612,0.16933411,76411.0,76410.0,0.14275815]
[1731165922996,0.16933411,76411.0,76410.0,0.09054247]
[1731165923701,0.16933411,76411.0,76410.0,0.02513547]
[1731165924709,0.16933411,76411.0,76410.0,0.07735115]
[1731165926234,0.16933411,76411.0,76410.0,0.02513547]
[1731165926928,0.16933411,76411.0,76410.0,0.07735115]
[1731165927632,0.10392811,76411.0,76410.0,0.07735115]
[1731165928232,0.10392811,76411.0,76410.0,0.02513547]
[1731165928731,0.10392811,76411.0,76410.0,0.07735115]
[1731165929229,0.17686565,76411.0,76410.0,0.07735115]
[1731165929432,0.17686565,76411.0,76410.0,0.02513547]
[1731165929624,0.23377126,76411.0,76410.0,0.06430393]
[1731165929822,0.23377126,76411.0,76410.0,0.02513547]
[1731165930335,0.065407,76410.0,76408.0,0.01924123]
[1731165930633,0.31310418,76409.0,76408.0,0.0048373]
[1731165934926,0.37851118,76409.0,76408.0,0.0048373]
[1731165945136,0.40862276,76409.0,76408.0,0.0048373]
[1731165949446,0.40862276,76409.0,76407.0,0.00352484]
[1731165949650,0.12251361,76408.0,76407.0,0.00352484]
[1731165950046,0.31877919,76408.0,76407.0,0.00352484]
[1731165955144,0.31877919,76408.0,76403.0,0.00472069]
[1731165955344,0.13834954,76404.0,76403.0,0.00472069]
[1731165955656,0.36012979,76404.0,76403.0,0.00472069]
[1731165956957,0.43306733,76404.0,76403.0,0.00472069]
[1731165960961,0.43306733,76404.0,76403.0,0.00073929]